bitfinex/quotes_ETHUSD_20251006
["timestamp","ask_amount","ask_price","bid_price","bid_amount"]
[1759752803139,0.002,4583.4,4583.3,8.02793404]
[1759752806004,0.002,4583.4,4583.3,2.7415]
[1759752806313,0.002,4583.4,4583.3,5.2115]
[1759752807114,0.002,4583.4,4583.3,7.39333404]
[1759752807827,0.002,4583.4,4583.3,5.2115]
[1759752808270,0.4587,4583.4,4583.3,5.2115]
[1759752808418,0.4587,4583.4,4583.3,2.2848]
[1759752808733,0.4587,4583.4,4583.3,5.92867988]
[1759752808934,0.4587,4583.4,4583.3,4.7548]
[1759752809322,0.002,4583.4,4583.3,4.7548]
[1759752809555,0.002,4583.4,4583.3,8.00171392]
[1759752809850,0.002,4583.4,4583.3,4.7548]
[1759752810208,0.002,4583.4,4583.3,6.93663404]
[1759752812720,0.002,4583.4,4583.3,8.30704321]
[1759752812931,0.002,4583.4,4583.3,8.61585069]
[1759752813132,0.002,4583.4,4583.3,10.17905386]
[1759752813447,0.002,4583.4,4583.3,8.61585069]
[1759752813746,0.0012,4583.4,4583.3,8.61585069]
[1759752815120,0.0012,4583.4,4583.3,9.08435069]
[1759752816743,0.0012,4583.4,4583.3,10.64755386]
[1759752819664,0.0012,4583.4,4583.3,9.08435069]
[1759752825280,0.002,4583.9,4583.3,9.08435069]
[1759752825281,0.002,4583.9,4583.4,5.21538644]
[1759752825438,0.002,4583.9,4583.8,2.81519605]
[1759752825638,0.002,4583.9,4583.8,7.79299605]
[1759752825838,0.002,4583.9,4583.8,8.11513686]
[1759752826041,0.002,4583.9,4583.8,8.76978348]
[1759752826240,0.002,4583.9,4583.8,10.34189861]
[1759752828069,0.002,4583.9,4583.8,7.87289861]
[1759752828253,0.002,4583.9,4583.8,10.34189861]
[1759752830061,0.002,4583.9,4583.8,7.87289861]
[1759752830258,0.002,4583.9,4583.8,11.90912907]
[1759752830980,0.002,4583.9,4583.8,11.90812907]
[1759752838192,0.0012,4583.9,4583.8,11.90812907]
[1759752838769,0.0012,4583.9,4583.8,7.25853302]
[1759752838980,0.4614,4583.9,4583.8,11.58498826]
[1759752839186,0.4614,4583.9,4583.8,10.0177578]
[1759752839491,0.0012,4583.9,4583.8,11.58498826]
[1759752839888,0.4614,4583.9,4583.8,4.93532933]
[1759752840092,0.4614,4583.9,4583.8,5.34504267]
[1759752840288,0.4614,4583.9,4583.8,7.81204267]
[1759752840992,0.4614,4583.9,4583.8,9.71391394]
[1759752841181,0.0012,4583.9,4583.8,9.71391394]
[1759752842997,0.0012,4583.9,4583.8,7.24691394]
[1759752843179,0.4304,4583.9,4583.8,6.91227313]
[1759752843383,0.4304,4583.9,4583.8,9.38027313]
[1759752844482,0.4304,4583.9,4583.8,6.91227313]
[1759752844682,0.4304,4583.9,4583.8,9.38027313]
[1759752845289,0.4304,4583.9,4583.8,7.81304267]
[1759752845478,0.4304,4583.9,4583.8,8.23704635]
[1759752845834,0.0012,4583.9,4583.8,8.23704635]
[1759752846401,0.0012,4583.9,4583.8,8.57168716]
[1759752846594,0.0012,4583.9,4583.8,9.20528716]
[1759752846775,0.0012,4583.9,4583.8,9.64988716]
[1759752847589,0.002,4584.4,4583.8,9.64988716]
[1759752847590,0.002,4584.4,4584.3,2.81495811]
[1759752847788,0.002,4584.4,4584.3,6.07105086]
[1759752848099,0.002,4584.4,4584.3,9.06963728]
[1759752848305,0.1088,4586.0,4584.4,30.0]
[1759752848491,0.58731868,4587.8,4586.5,0.6336]
[1759752848492,0.4292,4587.7,4586.5,0.6336]
[1759752848674,0.4292,4587.7,4587.1,1.17479855]
[1759752848873,0.4292,4587.6,4587.2,1.19659834]
[1759752849073,0.4292,4587.6,4586.6,2.26918148]
[1759752849074,0.4292,4587.5,4587.3,1.17479855]
[1759752849270,0.4292,4587.4,4587.0,1.17479855]
[1759752849505,0.4292,4587.3,4587.1,2.468]
[1759752850018,0.4292,4587.3,4587.2,2.468]
[1759752850228,0.4292,4587.3,4587.0,1.17479855]
[1759752850528,0.4292,4587.2,4587.1,2.468]
[1759752850896,0.4292,4587.2,4586.8,3.35496174]
[1759752850897,0.4292,4587.2,4586.8,1.17479855]
[1759752851089,2.83361038,4588.6,4586.7,2.18021509]
[1759752851090,0.4292,4587.1,4586.9,2.468]
[1759752851282,0.4292,4587.0,4586.4,1.17479855]
[1759752851812,0.4292,4587.0,4586.5,3.57479855]
[1759752852117,0.4292,4586.9,4586.5,1.17479855]
[1759752852293,0.4292,4586.9,4586.6,2.468]
[1759752852492,0.4292,4586.8,4586.5,2.4]
[1759752852818,0.4292,4586.8,4586.6,2.467]
[1759752853391,2.17983091,4587.6,4586.7,4.58021671]
[1759752853392,0.4292,4587.1,4586.7,4.58021671]
[1759752853615,0.4292,4587.0,4586.8,2.467]
[1759752854319,2.17989384,4587.4,4586.9,2.467]
[1759752854522,2.17993462,4587.3,4586.9,2.467]
[1759752854737,2.1800543,4587.1,4586.4,2.4]
[1759752854911,2.1800543,4587.1,4586.5,2.467]
[1759752855228,2.17997966,4587.2,4586.5,2.467]
[1759752855534,0.4292,4587.1,4586.2,3.79313524]
[1759752855700,0.4292,4587.0,4586.4,2.4]
[1759752855904,0.4292,4586.9,4586.6,4.58024348]
[1759752856203,0.4292,4586.8,4586.7,2.467]
[1759752856389,0.4292,4587.1,4586.7,2.467]
[1759752856715,0.4292,4587.5,4586.7,2.467]
[1759752856919,0.4292,4587.4,4586.7,2.467]
[1759752857125,0.4292,4587.4,4586.8,0.02180169]
[1759752857337,0.4292,4587.4,4586.9,2.467]
[1759752857544,0.4292,4587.3,4586.9,2.467]
[1759752858044,0.4292,4587.2,4586.9,4.64711836]
[1759752858417,2.17974271,4587.7,4586.9,4.64711836]
[1759752858418,2.28854271,4587.7,4587.1,0.1088]
[1759752858617,0.4292,4587.6,4587.2,2.466]
[1759752858953,2.28854271,4587.7,4587.2,2.466]
[1759752858954,0.4292,4587.5,4587.2,2.466]
[1759752861448,0.4292,4587.8,4587.2,2.466]
[1759752861643,0.538,4588.1,4587.5,0.1088]
[1759752861806,0.538,4588.1,4587.6,2.466]
[1759752862004,0.4292,4588.0,4587.6,2.466]
[1759752862208,2.6088506,4587.9,4587.6,2.466]
[1759752862448,2.60889844,4587.8,4587.6,2.466]
[1759752862619,0.4292,4587.7,4587.6,2.466]
[1759752862821,0.4284,4587.7,4587.6,2.466]
[1759752864643,2.60814148,4587.7,4587.6,2.466]
[1759752865652,2.61014148,4587.7,4587.6,2.466]
[1759752866020,0.4304,4587.7,4587.6,2.466]
[1759752866218,2.61014148,4587.7,4587.6,2.466]
[1759752868248,0.4304,4587.7,4587.6,2.466]
[1759752868449,2.61014148,4587.7,4587.6,2.466]
[1759752869751,2.18174148,4587.7,4587.6,2.466]
[1759752870649,2.61094148,4587.7,4587.6,2.466]
[1759752870827,2.17978899,4587.6,4587.5,0.1088]
[1759752871028,2.17978899,4587.6,4587.5,2.5748]
[1759752871751,2.17978899,4587.6,4587.5,0.1088]
[1759752871948,2.17978899,4587.6,4587.5,2.5748]
[1759752872556,2.60898899,4587.6,4587.5,2.5748]
[1759752873161,2.60898899,4587.6,4587.5,0.1088]
[1759752873461,2.61478899,4587.6,4587.5,0.1088]
[1759752873625,2.61478899,4587.6,4587.5,2.5748]
[1759752874247,2.61478899,4587.6,4587.5,0.1088]
[1759752874558,2.17994487,4587.3,4587.1,0.001]
[1759752874759,2.61478899,4587.6,4587.5,2.466]
[1759752875058,2.63798899,4587.6,4587.5,2.466]
[1759752876241,2.63798899,4587.6,4587.2,0.1088]
[1759752876242,2.17993155,4587.3,4587.2,0.1088]
[1759752876425,2.17997907,4587.2,4587.1,0.001]
[1759752876628,2.63817907,4587.2,4587.1,0.001]
[1759752876843,2.63817907,4587.2,4587.1,2.467]
[1759752877058,2.63817907,4587.2,4587.1,0.001]
[1759752877429,2.63817907,4587.2,4587.1,2.467]
[1759752878336,2.63817907,4587.2,4587.1,0.001]
[1759752878535,2.63817907,4587.2,4587.1,2.467]
[1759752879250,2.63817907,4587.2,4587.1,0.001]
[1759752879451,2.63817907,4587.2,4587.1,2.467]
[1759752880133,2.63817907,4587.2,4587.1,0.001]
[1759752881666,3.29265717,4587.2,4587.1,0.001]
[1759752887263,3.29185717,4587.2,4587.1,0.001]
[1759752889245,2.83365717,4587.2,4587.1,0.001]
[1759752889446,3.29185717,4587.2,4587.1,0.001]
[1759752893187,2.83365717,4587.2,4587.1,0.001]
[1759752893469,5.75785717,4587.2,4587.1,0.001]
[1759752897766,5.29965717,4587.2,4587.1,0.001]
[1759752898271,5.75785717,4587.2,4587.1,0.001]
[1759752902782,8.15785717,4587.2,4587.1,0.001]
[1759752904054,8.15985717,4587.2,4587.1,0.001]
[1759752905081,5.30165717,4587.2,4587.1,0.001]
[1759752905766,5.75275717,4587.2,4587.1,0.001]
[1759752907681,5.30165717,4587.2,4587.1,0.001]
[1759752908193,4.64717907,4587.2,4587.1,0.001]
[1759752908484,2.18117907,4587.2,4587.1,0.001]
[1759752908685,2.18197907,4587.2,4587.1,0.001]
[1759752908984,4.75677907,4587.2,4587.1,0.4395]
[1759752911467,0.1108,4587.2,4587.1,0.4395]
[1759752911667,2.29077907,4587.2,4587.1,0.4395]
[1759752911976,0.0012,4587.2,4587.1,0.5483]
[1759752912175,0.0012,4587.2,4587.1,1.89540841]
[1759752912386,0.0012,4587.2,4587.1,0.74241012]
[1759752912557,0.0012,4587.2,4587.1,0.72060986]
[1759752913157,0.0012,4587.2,4587.1,0.5483]
[1759752913360,0.0012,4587.2,4587.1,1.72231223]
[1759752913559,0.0012,4587.2,4587.1,3.90233882]
[1759752914175,0.0012,4587.2,4587.1,1.72231223]
[1759752914563,0.0012,4587.2,4587.1,0.5483]
[1759752914762,0.0012,4587.2,4587.1,0.72053122]
[1759752917494,0.0012,4587.2,4587.1,3.18653122]
[1759752920174,0.0012,4587.2,4587.1,0.1098]
[1759752920373,0.0012,4587.2,4587.1,0.001]
[1759752920573,2.18117907,4587.2,4587.1,0.001]
[1759752920799,0.0012,4587.2,4587.1,0.001]
[1759752921102,0.0012,4587.2,4587.1,0.4395]
[1759752922975,2.18117907,4587.2,4587.1,0.4395]
[1759752923576,0.0012,4587.2,4587.1,0.4395]
[1759752925781,0.0012,4587.2,4587.1,0.001]
[1759752926401,0.4523,4587.2,4587.1,0.001]
[1759752926904,2.63227907,4587.2,4587.1,0.001]
[1759752927102,2.18117907,4587.2,4587.1,0.001]
[1759752931207,0.0012,4587.2,4587.1,0.001]
[1759752931410,0.0012,4587.2,4587.1,0.4395]
[1759752931610,0.0012,4587.2,4587.1,0.43072329]
[1759752931908,0.0012,4587.2,4586.9,0.1088]
[1759752932115,0.0012,4587.2,4587.0,2.18003064]
[1759752932504,0.0012,4587.2,4587.1,2.533151]
[1759752932808,0.0012,4587.2,4587.1,2.51135074]
[1759752933020,0.0012,4587.2,4587.1,0.33132415]
[1759752933594,0.0012,4587.2,4587.1,0.79712415]
[1759752933785,0.0012,4587.2,4587.1,2.97715074]
[1759752933986,0.0012,4587.2,4587.1,3.94258589]
[1759752934210,0.0012,4587.2,4587.1,4.78527397]
[1759752936189,0.0004,4587.2,4587.1,3.94258589]
[1759752936385,0.0004,4587.2,4587.1,3.96438615]
[1759752936721,0.0004,4587.2,4587.1,4.70678615]
[1759752936895,0.0004,4587.2,4587.1,6.25138396]
[1759752937314,0.0004,4587.2,4587.1,4.68498589]
[1759752937804,0.0004,4587.2,4587.1,7.14998589]
[1759752938009,0.0004,4587.2,4587.1,8.7144093]
[1759752938208,0.0004,4587.2,4587.1,7.14998589]
[1759752939821,0.0004,4587.2,4587.1,8.7146571]
[1759752940021,0.0004,4587.2,4587.1,7.14998589]
[1759752941310,0.0004,4587.2,4587.1,9.54998589]
[1759752941517,2.17920845,4588.9,4587.7,2.17973851]
[1759752941822,0.1088,4589.0,4587.9,1.17375895]
[1759752941823,0.5701,4589.0,4587.9,1.17375895]
[1759752942027,2.17919239,4588.9,4588.5,0.1088]
[1759752942211,0.4613,4589.2,4588.7,0.1088]
[1759752942413,2.17921896,4588.8,4588.7,0.1088]
[1759752942596,2.64051896,4588.8,4588.7,0.1088]
[1759752943698,2.17921896,4588.8,4588.7,0.1088]
[1759752943895,2.64051896,4588.8,4588.7,0.1088]
[1759752945208,0.4613,4588.8,4588.2,2.465]
[1759752945412,2.17936144,4588.5,4588.4,0.1088]
[1759752945797,2.64066144,4588.5,4588.4,0.1088]
[1759752947031,3.99219497,4589.8,4588.4,0.1088]
[1759752947032,0.4613,4590.3,4588.4,2.74417408]
[1759752947239,0.58731868,4591.8,4588.8,2.17917829]
[1759752947240,2.84316913,4590.0,4588.8,2.17917829]
[1759752947544,0.4613,4590.2,4588.9,2.9271]
[1759752947840,2.17869418,4590.0,4589.1,2.17903286]
[1759752948145,2.17854921,4590.3,4589.2,0.02179029]
[1759752948350,0.4613,4590.3,4589.3,5.81653602]
[1759752948531,2.6398116,4590.3,4589.4,0.02178934]
[1759752948735,2.1786857,4590.0,4589.5,2.465]
[1759752948923,0.4613,4589.9,4589.5,2.465]
[1759752949537,2.17864701,4590.1,4589.5,2.465]
[1759752949940,2.17872813,4589.9,4589.5,2.465]
[1759752950244,0.4613,4589.8,4589.5,2.465]
[1759752950420,0.4613,4589.7,4589.4,2.465]
[1759752951033,2.64012273,4589.7,4589.4,2.465]
[1759752952537,0.4613,4589.7,4589.4,2.465]
[1759752952743,2.17881736,4589.7,4589.2,2.464]
[1759752952912,0.4613,4589.7,4589.2,2.464]
[1759752953654,2.17892565,4589.5,4589.2,2.464]
[1759752953838,0.4613,4590.1,4589.3,0.02178981]
[1759752954048,2.17526987,4590.0,4589.3,0.48388981]
[1759752954249,2.63991108,4590.1,4589.3,0.48388981]
[1759752954419,2.17873606,4589.9,4589.3,0.48388981]
[1759752954609,0.4613,4590.1,4589.3,0.48388981]
[1759752954922,2.17874426,4589.8,4589.3,0.48388981]
[1759752955242,2.63990828,4590.1,4589.3,0.48388981]
[1759752955243,0.4613,4590.1,4589.3,0.4621]
[1759752955421,2.1788289,4589.7,4589.1,2.464]
[1759752955836,2.63990299,4590.1,4589.1,2.464]
[1759752956044,4.64247088,4590.4,4589.1,2.464]
[1759752956229,2.6399634,4590.0,4589.2,0.02179029]
[1759752956433,2.17880148,4589.7,4589.2,2.48579029]
[1759752956622,0.4613,4590.6,4589.3,0.6336]
[1759752956955,0.4613,4590.6,4589.3,1.0957]
[1759752956956,2.17856295,4590.2,4589.3,1.0957]
[1759752957246,2.17865716,4590.0,4589.3,1.0957]
[1759752957462,0.1088,4590.7,4589.9,0.1088]
[1759752957612,0.4613,4590.6,4589.9,2.5728]
[1759752957813,2.17846575,4590.4,4589.9,2.464]
[1759752958017,0.1088,4591.0,4589.4,0.34299081]
[1759752958251,2.63982233,4590.3,4589.5,2.464]
[1759752958492,2.17863126,4590.1,4589.5,2.464]
[1759752960552,2.17875244,4589.8,4589.4,2.464]
[1759752960731,2.17795244,4589.8,4589.4,2.464]
[1759752960931,0.4613,4589.9,4589.4,2.464]
[1759752961120,2.64000112,4589.9,4589.4,2.464]
[1759752961649,2.18060217,4590.1,4589.5,0.02178886]
[1759752962143,0.002,4590.1,4589.4,2.464]
[1759752962342,0.002,4590.1,4589.6,2.17883911]
[1759752962545,0.002,4590.1,4589.5,3.27457701]
[1759752962748,0.002,4590.1,4589.5,2.64097701]
[1759752963137,0.002,4590.1,4589.6,2.17882926]
[1759752963335,0.002,4590.1,4589.5,3.7137429]
[1759752963541,0.002,4590.1,4589.5,3.71377323]
[1759752963745,2.17867192,4590.0,4589.5,1.53489365]
[1759752964049,2.17871329,4589.9,4589.5,0.6336]
[1759752964233,2.63895558,4590.0,4589.5,0.6336]
[1759752964433,2.17873363,4589.9,4589.4,2.464]
[1759752964844,2.17873363,4589.9,4589.4,2.901]
[1759752965147,2.17874423,4589.8,4589.4,2.901]
[1759752965458,2.17870761,4589.9,4589.5,2.464]
[1759752965660,2.17878151,4589.8,4589.5,2.464]
[1759752966151,2.17883911,4589.6,4589.5,2.464]
[1759752966658,0.002,4590.1,4589.5,2.464]
[1759752966858,2.17868764,4590.0,4589.6,2.464]
[1759752967022,2.17873831,4589.9,4589.6,2.464]
[1759752967351,2.17867746,4590.0,4589.6,2.464]
[1759752967540,2.17879164,4589.7,4589.6,2.464]
[1759752967741,2.17883911,4589.6,4589.1,1.17255448]
[1759752967941,2.63913911,4589.6,4589.2,2.464]
[1759752968146,2.63913911,4589.6,4589.5,0.1088]
[1759752968645,2.63913911,4589.6,4589.4,2.464]
[1759752968954,2.17868677,4590.0,4589.4,2.464]
[1759752968955,2.17880357,4589.7,4589.4,2.464]
[1759752969128,2.17885278,4589.6,4589.4,2.464]
[1759752969449,2.17880552,4589.7,4589.4,2.464]
[1759752970753,2.1786967,4589.9,4589.4,2.464]
[1759752970954,2.64094463,4590.1,4589.4,2.464]
[1759752971356,2.17874793,4589.8,4589.4,2.464]
[1759752971536,0.4623,4590.1,4589.4,2.464]
[1759752971949,2.17864923,4590.0,4589.4,2.464]
[1759752972324,2.17882271,4589.7,4589.4,2.464]
[1759752973049,2.17864923,4590.0,4589.4,2.464]
[1759752973050,2.17874845,4589.8,4589.4,2.464]
[1759752974262,2.17870445,4589.9,4589.4,2.464]
[1759752974638,0.4623,4590.1,4589.4,2.464]
[1759752974838,0.4603,4590.0,4589.4,2.464]
[1759752975048,2.17877668,4589.8,4589.4,2.464]
[1759752975250,2.17877668,4589.8,4589.4,2.901]
[1759752975658,2.1788077,4589.7,4589.4,2.901]
[1759752975848,2.1788077,4589.7,4589.2,1.17255448]
[1759752976049,0.002,4590.1,4589.3,2.464]
[1759752976361,2.1788493,4589.6,4589.3,3.63655448]
[1759752977286,2.1788493,4589.6,4589.4,1.17255448]
[1759752978572,2.17880629,4589.7,4589.5,0.1088]
[1759752979041,2.17883911,4589.6,4589.5,0.1088]
[1759752979554,2.63913911,4589.6,4589.5,0.1088]
[1759752979757,0.002,4590.1,4589.5,0.1088]
[1759752979960,2.17876051,4589.8,4589.5,0.1088]
[1759752980340,2.17879497,4589.7,4589.5,0.1088]
[1759752981356,2.63900895,4589.9,4589.5,0.1088]
[1759752981556,2.17874417,4589.8,4589.5,0.1088]
[1759752981758,2.17879171,4589.7,4589.5,0.1088]
[1759752982455,0.4603,4589.9,4589.5,0.1088]
[1759752982687,2.17883911,4589.6,4589.5,0.1088]
[1759752982983,2.63913911,4589.6,4589.5,0.1088]
[1759752983984,2.18064575,4590.1,4589.5,0.1088]
[1759752983985,2.17872604,4589.9,4589.5,0.1088]
[1759752984161,2.17879912,4589.7,4589.5,0.1088]
[1759752984361,0.002,4590.1,4589.5,0.1088]
[1759752984585,0.002,4590.1,4589.5,0.37681448]
[1759752984803,2.18060177,4590.1,4590.0,0.1088]
[1759752984989,0.002,4590.1,4590.0,0.1088]
[1759752985287,2.17980177,4590.1,4590.0,0.1088]
[1759752987809,0.0012,4590.1,4590.0,0.1088]
[1759752987972,0.0012,4590.1,4590.0,0.48551414]
[1759752988159,0.0012,4590.1,4590.0,0.92251414]
[1759752988794,0.0012,4590.1,4590.0,0.48551414]
[1759752990192,0.0012,4590.1,4590.0,2.09506862]
[1759752990430,0.0012,4590.1,4590.0,3.94728752]
[1759752990597,0.0012,4590.1,4590.0,8.04288594]
[1759752990934,0.0012,4590.1,4590.0,6.45608752]
[1759752991614,0.0012,4590.1,4590.0,8.01869147]
[1759752992500,0.0012,4590.1,4590.0,6.45608752]
[1759752992902,0.0012,4590.1,4590.0,10.48169147]
[1759752993119,0.0012,4590.1,4590.0,8.30304224]
[1759752993293,0.0012,4590.1,4590.0,10.48169147]
[1759752993696,0.0012,4590.1,4590.0,8.01869147]
[1759752993891,0.0012,4590.1,4590.0,6.45608752]
[1759752994095,0.0012,4590.1,4590.0,8.92108752]
[1759752995901,0.0012,4590.1,4590.0,6.74243829]
[1759752996226,0.0012,4590.1,4590.0,8.92108752]
[1759752996427,0.0012,4590.1,4590.0,0.37671414]
[1759752996727,0.0012,4590.1,4590.0,2.465]
[1759752997433,0.0012,4590.1,4590.0,2.94048649]
[1759752997726,0.0012,4590.1,4590.0,8.02035987]
[1759752997904,0.0012,4590.1,4590.0,8.45227338]
[1759753002932,0.0012,4590.1,4590.0,6.27362415]
[1759753003233,0.0012,4590.1,4590.0,8.91457204]
[1759753003656,5.26533409,4592.1,4590.0,8.91457204]
[1759753003657,1.17970666,4594.7,4593.9,2.17679966]
[1759753003851,2.17213457,4603.8,4593.9,2.17679966]
[1759753003852,2.17213457,4603.8,4594.9,2.17632592]
[1759753003853,0.4573,4596.1,4594.9,2.17632592]
[1759753004036,0.4573,4596.1,4595.0,2.4]
[1759753004366,0.4573,4596.1,4596.0,0.7735209]
[1759753004546,0.4573,4596.1,4596.0,3.70831361]
[1759753004761,0.4573,4596.1,4596.0,4.52889047]
[1759753005065,0.4573,4596.1,4596.0,4.15828427]
[1759753005419,0.4573,4596.1,4596.0,3.50529341]
[1759753006062,2.1757577,4596.1,4596.0,3.10237871]
[1759753006349,0.4573,4596.1,4596.0,3.30341853]
[1759753006553,0.4573,4596.1,4596.0,3.30312019]
[1759753008444,2.6330577,4596.1,4596.0,4.46089348]
[1759753008756,0.4573,4596.1,4596.0,4.46089348]
[1759753008942,0.4573,4596.1,4596.0,3.10237871]
[1759753009649,0.4573,4596.1,4596.0,3.87105516]
[1759753009650,0.4565,4596.1,4596.0,3.87105516]
[1759753010652,0.4565,4596.1,4596.0,3.10237871]
[1759753010653,2.6322577,4596.1,4596.0,3.10237871]
[1759753010955,2.7410577,4596.1,4596.0,3.10237871]
[1759753011170,2.7410577,4596.1,4596.0,3.67874317]
[1759753011372,2.7410577,4596.1,4596.0,3.10237871]
[1759753011563,2.7410577,4596.1,4596.0,1.0420133]
[1759753011738,2.7410577,4596.1,4596.0,0.46579271]
[1759753013741,2.6322577,4596.1,4596.0,0.46579271]
[1759753014043,2.7410577,4596.1,4596.0,0.46579271]
[1759753014753,3.39431018,4596.1,4596.0,0.46579271]
[1759753015160,5.2118577,4596.1,4596.0,0.46579271]
[1759753015966,5.2118577,4596.1,4596.0,2.62284971]
[1759753018851,5.2118577,4596.1,4595.5,0.76867645]
[1759753018852,2.17589973,4595.8,4595.6,0.57622059]
[1759753019047,2.17589973,4595.8,4592.2,3.95943789]
[1759753019048,2.17604178,4595.5,4594.6,0.57622059]
[1759753019247,2.28517329,4594.8,4594.7,0.20039373]
[1759753019478,5.21147329,4594.8,4594.7,2.35745073]
[1759753020179,5.21147329,4594.8,4594.7,2.157057]
[1759753020485,5.21147329,4594.8,4594.7,2.92573345]
[1759753020658,2.74247329,4594.8,4594.7,2.92573345]
[1759753020865,5.21147329,4594.8,4594.7,2.92573345]
[1759753023089,5.21147329,4594.8,4594.7,2.157057]
[1759753023281,5.21147329,4594.8,4594.7,2.92573345]
[1759753023589,5.21147329,4594.8,4594.7,2.157057]
[1759753023773,5.10267329,4594.8,4594.7,2.157057]
[1759753024085,2.17651539,4594.5,4594.3,0.76867645]
[1759753024258,2.1767049,4594.1,4594.0,1.15777329]
[1759753024460,4.6457049,4594.1,4594.0,3.51575529]
[1759753025286,4.6457049,4594.1,4594.0,2.357982]
[1759753026866,2.1767049,4594.1,4594.0,2.357982]
[1759753027176,2.1767049,4594.1,4594.0,2.35828213]
[1759753027177,5.0833049,4594.1,4594.0,2.35828213]
[1759753027491,5.0833049,4594.1,4594.0,0.77287225]
[1759753027693,5.0833049,4594.1,4593.8,0.57984978]
[1759753027694,2.17679966,4593.9,4593.8,0.57984978]
[1759753027874,2.17684705,4593.8,4593.7,0.57984978]
[1759753028073,5.08344705,4593.8,4593.7,0.57984978]
[1759753028376,2.17723991,4593.0,4592.2,1.55289502]
[1759753028576,2.61545153,4593.8,4592.3,2.1870378]
[1759753028577,2.468,4592.9,4592.3,2.1870378]
[1759753028778,2.17671233,4594.1,4592.4,2.02957012]
[1759753028989,2.17709823,4593.3,4592.5,0.4549]
[1759753029291,2.469,4593.2,4592.6,0.21652622]
[1759753029493,2.17727796,4592.9,4592.6,0.21652622]
[1759753029663,4.64627796,4592.9,4592.6,0.21652622]
[1759753029878,0.4386,4593.3,4592.3,1.55289502]
[1759753030071,2.17755808,4592.3,4592.2,1.55289502]
[1759753030265,2.17671371,4594.1,4591.9,1.55289502]
[1759753030266,2.17750994,4592.5,4591.9,1.55289502]
[1759753030487,2.17759448,4592.3,4591.9,1.55289502]
[1759753030687,2.17763414,4592.2,4591.8,2.00779502]
[1759753030894,2.17769035,4592.1,4591.9,0.46462437]
[1759753031095,2.17769035,4592.1,4590.9,0.6336]
[1759753031096,2.17769035,4592.1,4592.0,0.46462437]
[1759753031887,4.64569035,4592.1,4592.0,0.46462437]
[1759753032973,5.08429035,4592.1,4592.0,0.46462437]
[1759753033375,4.64569035,4592.1,4592.0,0.46462437]
[1759753033790,4.75449035,4592.1,4592.0,0.46462437]
[1759753034170,4.75369035,4592.1,4592.0,0.46462437]
[1759753034399,5.19229035,4592.1,4592.0,0.46462437]
[1759753034567,4.75369035,4592.1,4592.0,0.46462437]
[1759753035298,4.75369035,4592.1,4592.0,1.04619683]
[1759753035469,4.75369035,4592.1,4592.0,0.46462437]
[1759753035670,5.19229035,4592.1,4592.0,0.46462437]
[1759753036094,4.75369035,4592.1,4592.0,0.46462437]
[1759753036290,0.4386,4593.1,4592.0,0.46462437]
[1759753036489,0.4386,4593.6,4592.5,0.5813373]
[1759753036802,2.17722621,4593.0,4592.9,0.5813373]
[1759753037019,0.1088,4593.2,4592.9,0.46462437]
[1759753037186,2.471,4594.0,4593.0,0.94129663]
[1759753037504,2.17693923,4593.7,4593.1,0.91952437]
[1759753037704,2.471,4593.6,4593.2,0.46462437]
[1759753037884,2.471,4593.6,4592.1,0.4549]
[1759753037885,2.17703661,4593.4,4593.3,1.04605745]
[1759753038086,2.61563661,4593.4,4593.3,1.04605745]
[1759753038402,4.64903661,4593.4,4593.3,1.04605745]
[1759753038614,2.17703661,4593.4,4593.3,1.04605745]
[1759753038816,2.17708401,4593.3,4591.6,1.55289502]
[1759753039025,2.61568401,4593.3,4591.7,0.2007795]
[1759753039173,2.17713141,4593.2,4591.7,0.2007795]
[1759753039502,2.17780362,4591.8,4591.5,0.4549]
[1759753039707,2.474,4592.3,4591.6,0.4549]
[1759753039908,2.17775061,4591.9,4591.6,0.4549]
[1759753040410,2.474,4592.3,4591.6,0.4549]
[1759753040576,2.17785202,4591.7,4591.1,4.40779502]
[1759753040778,2.474,4592.3,4591.2,0.6881795]
[1759753040996,2.1778571,4591.7,4591.1,4.40779502]
[1759753041207,2.17791906,4591.6,4591.1,4.40779502]
[1759753041418,2.1777952,4591.8,4591.1,1.55289502]
[1759753041717,2.474,4591.9,4591.0,1.55289502]
[1759753042015,2.17811076,4591.2,4590.7,0.4549]
[1759753042202,2.17814411,4591.1,4590.8,0.9030795]
[1759753042386,2.17817731,4591.0,4590.8,0.4481795]
[1759753042584,2.1777952,4591.8,4589.5,2.1798418]
[1759753042585,4.65195708,4591.5,4590.4,1.55289502]
[1759753042790,4.65195708,4591.5,4589.8,2.3974699]
[1759753042791,2.474,4591.4,4590.0,1.55289502]
[1759753043023,2.9126,4591.3,4589.9,1.55289502]
[1759753043317,2.17812724,4591.1,4589.8,4.48179502]
[1759753043520,2.474,4591.3,4589.7,1.55289502]
[1759753043521,0.4386,4591.2,4589.7,1.55289502]
[1759753043720,0.4386,4591.2,4589.5,0.001]
[1759753043721,2.61672724,4591.1,4589.5,0.001]
[1759753044016,2.61672724,4591.1,4589.5,0.2019795]
[1759753044220,2.1787404,4589.9,4589.5,0.2019795]
[1759753044425,2.81147435,4591.7,4589.5,0.001]
[1759753044426,2.17883911,4589.6,4589.5,0.001]
[1759753045785,2.474,4590.3,4589.5,0.4559]
[1759753046322,2.474,4590.3,4589.5,0.001]
[1759753046521,0.4386,4590.4,4589.5,0.001]
[1759753046723,2.475,4590.3,4589.5,0.001]
[1759753046918,2.17869765,4589.9,4589.5,0.001]
[1759753047221,2.17869765,4589.9,4589.8,0.1088]
[1759753048503,2.17869765,4589.9,4589.5,0.001]
[1759753048504,0.4386,4589.9,4589.5,0.001]
[1759753048691,2.17883911,4589.6,4589.5,0.001]
[1759753048889,4.65283911,4589.6,4589.5,0.001]
[1759753050192,0.4386,4590.5,4589.5,0.001]
[1759753050532,2.474,4590.4,4589.5,0.4559]
[1759753050736,2.17870075,4589.9,4589.5,0.4559]